fUST/lending_fUST_20250522
["ID","MTS","AMOUNT","RATE_DAILY","PERIOD"]
[361906839,1747881041489,-430.0,0.00022739,2]
[361906840,1747881041498,-552.25,0.00022739,2]
[361906841,1747881041507,-496.36,0.00022739,2]
[361906842,1747881041516,-217.78,0.00022739,2]
[361906843,1747881041526,-430.0,0.00022739,2]
[361906844,1747881041536,-551.22,0.00022739,2]
[361906845,1747881041545,-430.0,0.00022739,2]
[361906846,1747881041555,-430.0,0.00022739,2]
[361906847,1747881041564,-430.0,0.00022739,2]
[361906848,1747881041574,-430.0,0.00022739,2]
[361906849,1747881041583,-1518.01071928,0.00022762,7]
[361906850,1747881041593,-1518.01071928,0.00022934,8]
[361906851,1747881041602,-151.0,0.00022997,2]
[361906852,1747881041611,-207.4,0.00022997,2]
[361906853,1747881041621,-300.67873062,0.00023,2]
[361906854,1747881041634,-430.0,0.00023013,2]
[361906855,1747881041643,-430.0,0.00023013,2]
[361906856,1747881041652,-430.0,0.00023013,2]
[361906857,1747881041662,-430.0,0.00023013,2]
[361906858,1747881041672,-442.45,0.00023013,2]
[361906859,1747881041681,-430.0,0.00023013,2]
[361906860,1747881041691,-430.0,0.00023013,2]
[361906861,1747881041703,-471.35,0.00023013,2]
[361906862,1747881041712,-430.0,0.00023013,2]
[361906863,1747881041722,-428.54,0.00023013,2]
[361906864,1747881041731,-430.0,0.00023013,2]
[361906865,1747881041741,-484.51,0.00023013,2]
[361906866,1747881041750,-430.0,0.00023013,2]
[361906867,1747881041760,-483.66,0.00023013,2]
[361906868,1747881041769,-430.0,0.00023013,2]
[361906869,1747881041778,-430.0,0.00023013,2]
[361906870,1747881041789,-218.06,0.00023013,2]
[361906871,1747881041799,-252.79,0.00023013,2]
[361906872,1747881041809,-961.73,0.00023013,2]
[361906873,1747881041819,-1398.21,0.00023013,2]
[361906874,1747881041829,-430.0,0.00023013,2]
[361906875,1747881041838,-1170.48,0.00023013,2]
[361906876,1747881041848,-430.0,0.00023013,2]
[361906877,1747881041857,-430.0,0.00023013,2]
[361906878,1747881041868,-430.0,0.00023013,2]
[361906879,1747881041878,-430.0,0.00023013,2]
[361906880,1747881041887,-430.0,0.00023013,2]
[361906881,1747881041897,-861.58,0.00023013,2]
[361906882,1747881041906,-430.0,0.00023013,2]
[361906883,1747881041916,-1148.21,0.00023013,2]
[361906884,1747881041926,-430.0,0.00023013,2]
[361906885,1747881041936,-430.0,0.00023013,2]
[361906886,1747881041945,-383.33,0.00023013,2]
[361906887,1747881041955,-430.0,0.00023013,2]
[361906888,1747881041966,-211.38,0.00023013,2]
[361906889,1747881041977,-430.0,0.00023013,2]
[361906890,1747881041987,-430.0,0.00023013,2]
[361906891,1747881041997,-430.0,0.00023013,2]
[361906892,1747881042007,-1371.72,0.00023013,2]
[361906893,1747881042018,-560.99,0.00023013,2]
[361906894,1747881042027,-430.0,0.00023013,2]
[361906895,1747881042039,-430.0,0.00023013,2]
[361906896,1747881042049,-430.0,0.00023013,2]
[361906897,1747881042058,-87.41547647,0.00023013,2]
[361906902,1747881042903,-1321.63263541,0.00021593,2]
[361906903,1747881042913,-514.03184268,0.00021908,2]
[361906904,1747881042923,-500.0,0.00021908,2]
[361906905,1747881042932,-500.0,0.00021908,2]
[361906906,1747881042942,-589.11324452,0.00021908,2]
[361906907,1747881042952,-500.0,0.00021908,2]
[361906908,1747881042961,-500.0,0.00021908,2]
[361906909,1747881042971,-500.0,0.00021908,2]
[361906910,1747881042980,-500.0,0.00021908,2]
[361906911,1747881042989,-500.0,0.00021908,2]
[361906912,1747881042999,-500.0,0.00021908,2]
[361906913,1747881043009,-500.0,0.00021908,2]
[361906915,1747881043018,-500.0,0.00021908,2]
[361906917,1747881043027,-500.0,0.00021908,2]
[361906919,1747881043037,-500.0,0.00021908,2]
[361906920,1747881043046,-500.0,0.00021908,2]
[361906921,1747881043056,-500.0,0.00021908,2]
[361906922,1747881043064,-500.0,0.00021908,2]
[361906923,1747881043074,-500.0,0.00021908,2]
[361906924,1747881043083,-500.0,0.00021908,2]
[361906925,1747881043092,-500.0,0.00021908,2]
[361906926,1747881043101,-500.0,0.00021908,2]
[361906927,1747881043110,-500.0,0.00021908,2]
[361906928,1747881043119,-500.0,0.00021908,2]
[361906929,1747881043129,-500.0,0.00021908,2]
[361906930,1747881043138,-500.0,0.00021908,2]
[361906931,1747881043147,-500.0,0.00021908,2]
[361906933,1747881043156,-500.0,0.00021908,2]
[361906935,1747881043165,-386.59443351,0.00021908,2]
[361906936,1747881043175,-500.0,0.00021908,2]
[361906937,1747881043184,-500.0,0.00021908,2]
[361906938,1747881043193,-226.51590911,0.00021908,2]
[361906939,1747881043203,-500.0,0.00021908,2]
[361906940,1747881043212,-500.0,0.00021908,2]
[361906941,1747881043221,-500.0,0.00021908,2]
[361906942,1747881043231,-500.0,0.00021908,2]
[361906943,1747881043240,-500.0,0.00021908,2]
[361906944,1747881043249,-500.0,0.00021908,2]
[361906945,1747881043258,-500.0,0.00021908,2]
[361906946,1747881043267,-500.0,0.00021908,2]
[361906947,1747881043276,-500.0,0.00021908,2]
[361906948,1747881043285,-500.0,0.00021908,2]
[361906949,1747881043295,-500.0,0.00021908,2]
[361906950,1747881043304,-500.0,0.00021908,2]
[361906951,1747881043314,-500.0,0.00021908,2]
[361906953,1747881043323,-500.0,0.00021908,2]
[361906955,1747881043332,-500.0,0.00021908,2]
[361906957,1747881043341,-500.0,0.00021908,2]
[361906958,1747881043351,-500.0,0.00021908,2]
[361906959,1747881043360,-500.0,0.00021908,2]
[361906960,1747881043369,-500.0,0.00021908,2]
[361906961,1747881043379,-435.92375421,0.00021917,2]
[361906962,1747881043388,-494.72794118,0.00021917,2]
[361906963,1747881043537,-160.0,0.00022542,2]
[361906964,1747881043547,-342.58452353,0.00023013,2]
[361906965,1747881043557,-477.76,0.00023013,2]
[361906966,1747881043567,-430.0,0.00023013,2]
[361906967,1747881043576,-552.25,0.00023013,2]
[361906968,1747881043585,-496.36,0.00023013,2]
[361906969,1747881043594,-430.0,0.00023013,2]
[361906970,1747881043603,-430.0,0.00023013,2]
[361906971,1747881043612,-547.74021645,0.00023013,2]
[361906972,1747881043624,-462.80588903,0.00023013,2]
[361906973,1747881043634,-430.0,0.00023013,2]
[361906974,1747881043643,-1518.01071928,0.00023107,8]
[361906975,1747881043652,-734.23640346,0.00023244,2]
[361906976,1747881043663,-1086.0,0.0002326,120]
[361906977,1747881043672,-1086.0,0.0002327,120]
[361906978,1747881043682,-1518.01071928,0.00023279,8]
[361906979,1747881043692,-1086.0,0.0002328,120]
[361906980,1747881043702,-430.0,0.00023287,2]
[361906981,1747881043712,-430.0,0.00023287,2]
[361906982,1747881043722,-386.1,0.00023287,2]
[361906983,1747881043732,-263.21,0.00023287,2]
[361906984,1747881043741,-442.45,0.00023287,2]
[361906985,1747881043751,-326.38,0.00023287,2]
[361906986,1747881043760,-430.0,0.00023287,2]
[361906987,1747881043771,-471.35,0.00023287,2]
[361906988,1747881043783,-430.0,0.00023287,2]
[361906989,1747881043793,-430.0,0.00023287,2]
[361906990,1747881043802,-430.0,0.00023287,2]
[361906991,1747881043812,-483.66,0.00023287,2]
[361906992,1747881043821,-445.68,0.00023287,2]
[361906993,1747881043831,-430.0,0.00023287,2]
[361906994,1747881043841,-961.73,0.00023287,2]
[361906995,1747881043850,-1398.21,0.00023287,2]
[361906996,1747881043860,-430.0,0.00023287,2]
[361906997,1747881043869,-1170.48,0.00023287,2]
[361906998,1747881043879,-521.95150537,0.00023287,2]
[361906999,1747881043888,-430.0,0.00023287,2]
[361907000,1747881043899,-430.0,0.00023287,2]
[361907001,1747881043908,-430.0,0.00023287,2]
[361907002,1747881043918,-430.0,0.00023287,2]
[361907003,1747881043928,-861.58,0.00023287,2]
[361907004,1747881043937,-430.0,0.00023287,2]
[361907005,1747881043947,-1148.21,0.00023287,2]
[361907006,1747881043956,-430.0,0.00023287,2]
[361907007,1747881043966,-430.0,0.00023287,2]
[361907008,1747881043975,-430.0,0.00023287,2]
[361907009,1747881043985,-430.0,0.00023287,2]
[361907010,1747881043995,-430.0,0.00023287,2]
[361907011,1747881044006,-430.0,0.00023287,2]
[361907012,1747881044016,-1371.72,0.00023287,2]
[361907013,1747881044026,-314.03,0.00023287,2]
[361907014,1747881044035,-430.0,0.00023287,2]
[361907015,1747881044044,-430.0,0.00023287,2]
[361907016,1747881044054,-430.0,0.00023287,2]
[361907017,1747881044063,-477.76,0.00023287,2]
[361907018,1747881044072,-430.0,0.00023287,2]
[361907019,1747881044081,-552.25,0.00023287,2]
[361907020,1747881044091,-496.36,0.00023287,2]
[361907021,1747881044100,-430.0,0.00023287,2]
[361907022,1747881044109,-430.0,0.00023287,2]
[361907023,1747881044118,-430.0,0.00023287,2]
[361907024,1747881044127,-4286.28,0.00023287,2]
[361907025,1747881044136,-1518.01071928,0.00023452,9]
[361907026,1747881044146,-169.92,0.00023561,2]
[361907027,1747881044155,-482.29,0.00023561,2]
[361907028,1747881044164,-442.45,0.00023561,2]
[361907029,1747881044174,-430.0,0.00023561,2]
[361907030,1747881044183,-471.35,0.00023561,2]
[361907031,1747881044192,-496.94,0.00023561,2]
[361907032,1747881044202,-430.0,0.00023561,2]
[361907033,1747881044211,-430.0,0.00023561,2]
[361907034,1747881044221,-483.66,0.00023561,2]
[361907035,1747881044230,-430.0,0.00023561,2]
[361907036,1747881044239,-961.73,0.00023561,2]
[361907037,1747881044248,-1398.21,0.00023561,2]
[361907038,1747881044258,-283.59766085,0.00023561,2]
[361907039,1747881044267,-1170.48,0.00023561,2]
[361907040,1747881044276,-430.0,0.00023561,2]
[361907041,1747881044288,-430.0,0.00023561,2]
[361907042,1747881044298,-176.73,0.00023561,2]
[361907043,1747881044308,-430.0,0.00023561,2]
[361907044,1747881044318,-861.58,0.00023561,2]
[361907045,1747881044328,-430.0,0.00023561,2]
[361907046,1747881044337,-1148.21,0.00023561,2]
[361907047,1747881044347,-430.0,0.00023561,2]
[361907048,1747881044356,-430.0,0.00023561,2]
[361907049,1747881044366,-430.0,0.00023561,2]
[361907050,1747881044376,-430.0,0.00023561,2]
[361907051,1747881044385,-430.0,0.00023561,2]
[361907052,1747881044395,-430.0,0.00023561,2]
[361907053,1747881044404,-1371.72,0.00023561,2]
[361907054,1747881044413,-430.0,0.00023561,2]
[361907055,1747881044423,-430.0,0.00023561,2]
[361907056,1747881044432,-430.0,0.00023561,2]
[361907057,1747881044441,-477.76,0.00023561,2]
[361907058,1747881044451,-430.0,0.00023561,2]
[361907059,1747881044460,-552.25,0.00023561,2]
[361907060,1747881044469,-496.36,0.00023561,2]
[361907061,1747881044479,-430.0,0.00023561,2]
[361907062,1747881044488,-430.0,0.00023561,2]
[361907063,1747881044497,-430.0,0.00023561,2]
[361907064,1747881044507,-1518.01071928,0.00023624,9]
[361907065,1747881044516,-420.0,0.00023711,2]
[361907066,1747881044526,-1518.01071928,0.00023797,9]
[361907067,1747881044540,-442.45,0.00023835,2]
[361907068,1747881044551,-430.0,0.00023835,2]
[361907069,1747881044560,-471.35,0.00023835,2]
[361907070,1747881044570,-236.62,0.00023835,2]
[361907071,1747881044579,-430.0,0.00023835,2]
[361907072,1747881044589,-483.66,0.00023835,2]
[361907073,1747881044599,-430.0,0.00023835,2]
[361907074,1747881044608,-961.73,0.00023835,2]
[361907075,1747881044619,-1398.21,0.00023835,2]
[361907076,1747881044632,-1170.48,0.00023835,2]
[361907077,1747881044643,-430.0,0.00023835,2]
[361907078,1747881044652,-430.0,0.00023835,2]
[361907079,1747881044662,-430.0,0.00023835,2]
[361907080,1747881044673,-861.58,0.00023835,2]
[361907081,1747881044683,-430.0,0.00023835,2]
[361907082,1747881044693,-1148.21,0.00023835,2]
[361907083,1747881044702,-430.0,0.00023835,2]
[361907084,1747881044713,-430.0,0.00023835,2]
[361907085,1747881044722,-180.21,0.00023835,2]
[361907086,1747881044732,-430.0,0.00023835,2]
[361907087,1747881044742,-173.86,0.00023835,2]
[361907088,1747881044752,-430.0,0.00023835,2]
[361907089,1747881044761,-1371.72,0.00023835,2]
[361907090,1747881044771,-430.0,0.00023835,2]
[361907091,1747881044782,-430.0,0.00023835,2]
[361907092,1747881044794,-430.0,0.00023835,2]
[361907093,1747881044804,-477.76,0.00023835,2]
[361907094,1747881044815,-197.14,0.00023835,2]
[361907095,1747881044825,-552.25,0.00023835,2]
[361907096,1747881044834,-496.36,0.00023835,2]
[361907097,1747881044843,-499.5,0.00023835,2]
[361907098,1747881044853,-430.0,0.00023835,2]
[361907099,1747881044863,-430.0,0.00023835,2]
[361907100,1747881044872,-734.23640346,0.00023957,2]
[361907101,1747881044882,-1518.01071928,0.00023969,10]
[361907102,1747881044891,-113547.22193913,0.00024,21]
[361907103,1747881044901,-151.0,0.000241,5]
[361907104,1747881044910,-442.45,0.00024109,2]
[361907105,1747881044920,-430.0,0.00024109,2]
[361907106,1747881044929,-471.35,0.00024109,2]
[361907107,1747881044939,-430.0,0.00024109,2]
[361907108,1747881044948,-483.66,0.00024109,2]
[361907109,1747881044958,-430.0,0.00024109,2]
[361907110,1747881044967,-961.73,0.00024109,2]
[361907111,1747881044977,-1398.21,0.00024109,2]
[361907112,1747881044987,-1170.48,0.00024109,2]
[361907113,1747881044996,-513.15706392,0.00024109,2]
[361907114,1747881045006,-430.0,0.00024109,2]
[361907115,1747881045015,-430.0,0.00024109,2]
[361907116,1747881045025,-861.58,0.00024109,2]
[361907117,1747881045034,-430.0,0.00024109,2]
[361907118,1747881045043,-1148.21,0.00024109,2]
[361907119,1747881045052,-430.0,0.00024109,2]
[361907120,1747881045062,-325.96,0.00024109,2]
[361907121,1747881045071,-430.0,0.00024109,2]
[361907122,1747881045080,-430.0,0.00024109,2]
[361907123,1747881045089,-1371.72,0.00024109,2]
[361907124,1747881045098,-151.96,0.00024109,2]
[361907125,1747881045108,-430.0,0.00024109,2]
[361907126,1747881045117,-430.0,0.00024109,2]
[361907127,1747881045126,-477.76,0.00024109,2]
[361907128,1747881045136,-552.25,0.00024109,2]
[361907129,1747881045145,-496.36,0.00024109,2]
[361907130,1747881045155,-280.96627748,0.00024109,2]
[361907131,1747881045164,-430.0,0.00024109,2]
[361907132,1747881045174,-1518.01071928,0.00024141,10]
[361907133,1747881045183,-363.4438647,0.00024274,2]
[361907134,1747881045193,-363.6506951,0.00024274,2]
[361907135,1747881045203,-731.6166295,0.00024274,2]
[361907136,1747881045213,-1518.01071928,0.00024314,10]
[361907137,1747881045222,-731.7298182,0.00024329,2]
[361907138,1747881045232,-442.45,0.00024383,2]
[361907139,1747881045241,-430.0,0.00024383,2]
[361907140,1747881045250,-471.35,0.00024383,2]
[361907141,1747881045259,-382.08,0.00024383,2]
[361907142,1747881045269,-483.66,0.00024383,2]
[361907143,1747881045278,-430.0,0.00024383,2]
[361907144,1747881045289,-961.73,0.00024383,2]
[361907145,1747881045299,-1398.21,0.00024383,2]
[361907146,1747881045308,-1170.48,0.00024383,2]
[361907147,1747881045318,-430.0,0.00024383,2]
[361907148,1747881045327,-430.0,0.00024383,2]
[361907149,1747881045337,-861.58,0.00024383,2]
[361907150,1747881045346,-430.0,0.00024383,2]
[361907151,1747881045357,-1148.21,0.00024383,2]
[361907152,1747881045367,-430.0,0.00024383,2]
[361907153,1747881045376,-430.0,0.00024383,2]
[361907154,1747881045386,-430.0,0.00024383,2]
[361907155,1747881045395,-1371.72,0.00024383,2]
[361907156,1747881045405,-430.0,0.00024383,2]
[361907157,1747881045414,-402.38541685,0.00024383,2]
[361907158,1747881045425,-477.76,0.00024383,2]
[361907159,1747881045435,-552.25,0.00024383,2]
[361907160,1747881045446,-496.36,0.00024383,2]
[361907161,1747881045457,-430.0,0.00024383,2]
[361907162,1747881045466,-151.0,0.000244,6]
[361907163,1747881045476,-635.83216067,0.00024413,2]
[361907164,1747881045486,-1518.01071928,0.00024486,11]
[361907166,1747881045496,-643.1305,0.000245,2]
[361907167,1747881045505,-200.05975851,0.00024657,2]
[361907169,1747881045515,-442.45,0.00024657,2]
[361907171,1747881045524,-430.0,0.00024657,2]
[361907172,1747881045533,-345.33110242,0.00024657,2]
[361907173,1747881045543,-430.0,0.00024657,2]
[361907174,1747881045553,-471.35,0.00024657,2]
[361907175,1747881045563,-483.66,0.00024657,2]
[361907176,1747881045572,-430.0,0.00024657,2]
[361907177,1747881045581,-961.73,0.00024657,2]
[361907178,1747881045591,-1398.21,0.00024657,2]
[361907179,1747881045601,-1170.48,0.00024657,2]
[361907180,1747881045610,-430.0,0.00024657,2]
[361907182,1747881045620,-430.0,0.00024657,2]
[361907184,1747881045632,-861.58,0.00024657,2]
[361907185,1747881045641,-430.0,0.00024657,2]
[361907186,1747881045651,-1148.21,0.00024657,2]
[361907187,1747881045661,-430.0,0.00024657,2]
[361907189,1747881045671,-430.0,0.00024657,2]
[361907190,1747881045681,-430.0,0.00024657,2]
[361907191,1747881045690,-1371.72,0.00024657,2]
[361907192,1747881045700,-430.0,0.00024657,2]
[361907193,1747881045710,-477.76,0.00024657,2]
[361907194,1747881045720,-552.25,0.00024657,2]
[361907196,1747881045730,-496.36,0.00024657,2]
[361907197,1747881045739,-430.0,0.00024657,2]
[361907198,1747881045748,-500.0,0.00024658,2]
[361907199,1747881045758,-500.0,0.00024658,2]
[361907200,1747881045767,-235.99118518,0.00024658,2]
[361907201,1747881045777,-500.0,0.00024658,2]
[361907202,1747881045787,-500.0,0.00024658,2]
[361907204,1747881045797,-500.0,0.00024658,2]
[361907210,1747881045988,-500.0,0.00024658,2]
[361907211,1747881045998,-500.0,0.00024658,2]
[361907212,1747881046007,-500.0,0.00024658,2]
[361907213,1747881046017,-500.0,0.00024658,2]
[361907214,1747881046026,-200.0,0.00024658,2]
[361907215,1747881046037,-500.0,0.00024658,2]
[361907216,1747881046046,-500.0,0.00024658,2]
[361907217,1747881046056,-500.0,0.00024658,2]
[361907218,1747881046066,-500.0,0.00024658,2]
[361907219,1747881046076,-500.0,0.00024658,2]
[361907220,1747881046085,-500.0,0.00024658,2]
[361907221,1747881046095,-249.7401227,0.00024658,2]
[361907222,1747881046105,-500.0,0.00024658,2]
[361907223,1747881046115,-500.0,0.00024658,2]
[361907225,1747881046124,-500.0,0.00024658,2]
[361907227,1747881046134,-500.0,0.00024658,2]
[361907228,1747881046143,-500.0,0.00024658,2]
[361907229,1747881046153,-500.0,0.00024658,2]
[361907230,1747881046162,-210.61714923,0.00024658,2]
[361907231,1747881046172,-1518.01071928,0.00024659,11]
[361907232,1747881046182,-734.23640346,0.0002467,2]
[361907233,1747881046193,-240256.02560747,0.0002469,2]
[361907234,1747881046204,-151.0,0.000247,5]
[361907235,1747881046215,-6398.93,0.000247,7]
[361907236,1747881046226,-8023.83,0.000247,7]
[361907237,1747881046237,-14334.52,0.000247,2]
[361907238,1747881046248,-151.0,0.000247,8]
[361907239,1747881046259,-155.84756444,0.00024712,2]
[361907240,1747881046269,-404.0,0.00024716,2]
[361907241,1747881046279,-962.276,0.00024716,2]
[361907242,1747881046296,-1000.0,0.00024723,2]
[361907243,1747881046307,-151.0,0.0002474,7]
[361907244,1747881046318,-151.0,0.0002474,7]
[361907245,1747881046331,-151.0,0.0002474,7]
[361907246,1747881046341,-192971.5422419,0.0002475,2]
[361907247,1747881046351,-957.34471804,0.00024756,2]
[361907248,1747881046361,-807.53574278,0.0002477,2]
[361907249,1747881046371,-501.29194946,0.00024773,2]
[361907250,1747881046381,-502.49010155,0.00024773,2]
[361907251,1747881046391,-501.46429669,0.00024773,2]
[361907252,1747881046400,-500.0,0.00024773,2]
[361907253,1747881046409,-150.0,0.00024773,2]
[361907254,1747881046418,-500.0,0.00024773,2]
[361907255,1747881046428,-600.0,0.00024773,2]
[361907256,1747881046437,-12853.5053806,0.00024774,2]
[361907257,1747881046446,-290.597142,0.00024774,7]
[361907258,1747881046460,-151.0,0.00024774,7]
[361907259,1747881046470,-290.597142,0.00024774,7]
[361907260,1747881046479,-151.818443,0.000248,7]
[361907261,1747881046488,-151.0,0.000248,7]
[361907262,1747881046498,-151.0,0.000248,7]
[361907263,1747881046507,-150.0,0.000248,2]
[361907264,1747881046516,-11328.53698336,0.000248,2]
[361907265,1747881046618,-10662.94694867,0.000248,2]
[361907266,1747881046639,-1942.08228209,0.000248,2]
[361907267,1747881046650,-3452.02384138,0.000248,2]
[361907268,1747881046663,-19113.78062333,0.000248,2]
[361907269,1747881046851,-279.89651618,0.00021908,2]
[361907270,1747881046906,-220.10348382,0.00021908,2]
[361907271,1747881046915,-500.0,0.00021908,2]
[361907272,1747881046927,-164.67373737,0.00021908,2]
[361907273,1747881046938,-335.32626263,0.00021908,2]
[361907274,1747881046948,-500.0,0.00021908,2]
[361907275,1747881046958,-500.0,0.00021908,2]
[361907276,1747881046968,-500.0,0.00021908,2]
[361907277,1747881046978,-154.89295371,0.00021908,2]
[361907278,1747881046988,-500.0,0.00021908,2]
[361907279,1747881046998,-500.0,0.00021908,2]
[361907280,1747881047007,-471.54281039,0.00022141,2]
[361907281,1747881047017,-70657.59370143,0.000248,2]
[361907282,1747881047029,-1099.96710003,0.000248,2]
[361907283,1747881047043,-1510.43591461,0.000248,2]
[361907284,1747881047059,-500.0,0.00021908,2]
[361907285,1747881047069,-11542.03678103,0.000248,2]
[361907286,1747881047235,-500.0,0.00021908,2]
[361907287,1747881047246,-500.0,0.00021908,2]
[361907288,1747881047256,-500.0,0.00021908,2]
[361907289,1747881047265,-500.0,0.00021908,2]
[361907290,1747881047275,-500.0,0.00021908,2]
[361907291,1747881047286,-500.0,0.00021908,2]
[361907292,1747881047296,-500.0,0.00021908,2]
[361907293,1747881047305,-500.0,0.00021908,2]
[361907294,1747881047315,-500.0,0.00021908,2]
[361907295,1747881047324,-500.0,0.00021908,2]
[361907296,1747881047334,-500.0,0.00021908,2]
[361907297,1747881047344,-500.0,0.00021908,2]
[361907298,1747881047353,-500.0,0.00021908,2]
[361907299,1747881047363,-500.0,0.00021908,2]
[361907300,1747881047374,-500.0,0.00021908,2]
[361907301,1747881047383,-500.0,0.00021908,2]
[361907302,1747881047393,-500.0,0.00021908,2]
[361907303,1747881047403,-500.0,0.00021908,2]
[361907304,1747881047413,-430.0,0.00021917,2]
[361907305,1747881047422,-14657.11736979,0.000248,2]
[361907306,1747881047443,-1214.92120798,0.000248,2]
[361907307,1747881047455,-1202.20201971,0.000248,2]
[361907308,1747881047466,-1293.45,0.000248,2]
[361907309,1747881047570,-430.0,0.00021917,2]
[361907310,1747881047581,-224.60364045,0.000248,2]
[361907311,1747881047593,-45.85024714,0.000248,2]
[361907312,1747881047605,-1518.01071928,0.00024831,12]
[361907313,1747881047615,-500.0,0.00024873,2]
[361907314,1747881047626,-500.0,0.00024873,2]
[361907315,1747881047638,-3878.18612579,0.000249,2]
[361907316,1747881047649,-9746.59569389,0.000249,2]
[361907317,1747881047659,-10959.57944175,0.000249,3]
[361907318,1747881047676,-500.0,0.000249,3]
[361907319,1747881047687,-709.82680776,0.000249,3]
[361907320,1747881047699,-909.64364974,0.000249,3]
[361907321,1747881047713,-9818.11819049,0.000249,3]
[361907322,1747881047726,-16411.91208668,0.000249,3]
[361907323,1747881047735,-151.0,0.000249,7]
[361907324,1747881047744,-151.0,0.000249,7]
[361907325,1747881047755,-151.0,0.000249,7]
[361907326,1747881047764,-151.0,0.000249,7]
[361907327,1747881047774,-151.0,0.000249,7]
[361907328,1747881047786,-151.0,0.000249,7]
[361907329,1747881047797,-151.0,0.000249,7]
[361907330,1747881047809,-151.0,0.000249,7]
[361907331,1747881047819,-151.0,0.000249,7]
[361907332,1747881047829,-151.0,0.000249,7]
[361907333,1747881047839,-166.796622,0.000249,7]
[361907334,1747881047850,-151.0,0.000249,7]
[361907335,1747881047860,-166.796622,0.000249,7]
[361907336,1747881047870,-151.0,0.000249,7]
[361907337,1747881047880,-151.0,0.000249,7]
[361907338,1747881047890,-151.0,0.000249,7]
[361907339,1747881047900,-151.318108,0.000249,7]
[361907340,1747881047909,-5045.01379695,0.000249,2]
[361907341,1747881047919,-151.0,0.000249,7]
[361907342,1747881047929,-151.0,0.000249,7]
[361907343,1747881047939,-151.0,0.000249,7]
[361907344,1747881047948,-151.0,0.000249,7]
[361907345,1747881047958,-181.031841,0.000249,7]
[361907346,1747881047968,-151.0,0.000249,7]
[361907347,1747881047979,-2558.13092338,0.000249,2]
[361907348,1747881047991,-71144.31788442,0.000249,2]
[361907362,1747881425139,162.526636,0.00013699,2]
[361907367,1747881950139,-2355.72757512,0.00020563,2]
[361907368,1747882044094,-2684.15348655,0.00020046,2]
[361907369,1747882044142,-2315.84651345,0.00020046,2]
[361907370,1747882044165,-1085.6833933,0.00020249,2]
[361907371,1747882044187,-6111.15273175,0.00020327,2]
[361907372,1747882048090,-703.56636883,0.00020327,2]
[361907373,1747882052085,-1873.55819569,0.00020124,2]
[361907374,1747882160121,-3126.44180431,0.00020124,2]
[361907375,1747882160145,-1097.91788342,0.00020327,2]
[361907376,1747882160167,-300.0,0.00020782,2]
[361907377,1747882160190,-300.0,0.00020783,2]
[361907378,1747882160211,-1200.0,0.00020783,2]
[361907379,1747882160232,-300.0,0.00020783,2]
[361907380,1747882160253,-10269.87090388,0.00020784,2]
[361907381,1747882169103,-2418.20975644,0.00020576,2]
[361907382,1747882169146,-77.08368848,0.00020576,2]